[Event "Titled Tuesday Blitz March 15 Late 2022"]
[White "Al-Tarboush, Ward"]
[Black "Mohammadian, Mohammad"]
[WhiteFideId "7601450"]
[BlackFideId "12566055"]
[WhiteElo "2276"]
[BlackElo "1544"]
[Result "1-0"]
[Round "01"]
[TimeControl "180+1"]
[Date "2022.03.16"]
[WhiteClock "0:01:20"]
[BlackClock "0:00:04"]

1. e4 {[%clk 0:02:58]}  e5 {[%clk 0:02:59]} 2. Nf3 {[%clk 0:02:58]}  Nc6 {[%clk 0:02:58]} 3. Bb5 {[%clk 0:02:58]}  a6 {[%clk 0:02:57]} 4. Ba4 {[%clk 0:02:57]}  Nf6 {[%clk 0:02:56]} 5. O-O {[%clk 0:02:56]}  Be7 {[%clk 0:02:53]} 6. Qe2 {[%clk 0:02:55]}  b5 {[%clk 0:02:48]} 7. Bb3 {[%clk 0:02:55]}  d6 {[%clk 0:02:48]} 8. c3 {[%clk 0:02:52]}  Na5 {[%clk 0:02:47]} 9. Bc2 {[%clk 0:02:52]}  c5 {[%clk 0:02:47]} 10. d4 {[%clk 0:02:51]}  Qc7 {[%clk 0:02:46]} 11. d5 {[%clk 0:02:45]}  O-O {[%clk 0:02:45]} 12. b3 {[%clk 0:02:45]}  Bg4 {[%clk 0:02:42]} 13. h3 {[%clk 0:02:45]}  Bh5 {[%clk 0:02:42]} 14. Re1 {[%clk 0:02:40]}  Nb7 {[%clk 0:02:31]} 15. Nbd2 {[%clk 0:02:40]}  Qd7 {[%clk 0:02:25]} 16. Nf1 {[%clk 0:02:38]}  a5 {[%clk 0:02:17]} 17. Ng3 {[%clk 0:02:36]}  Bg6 {[%clk 0:02:15]} 18. Be3 {[%clk 0:02:22]}  b4 {[%clk 0:02:11]} 19. Bd3 {[%clk 0:02:14]}  Qc7 {[%clk 0:02:07]} 20. Rec1 {[%clk 0:02:09]}  Qd8 {[%clk 0:02:01]} 21. Bd2 {[%clk 0:02:00]}  Qb8 {[%clk 0:01:47]} 22. Bb5 {[%clk 0:01:59]}  Rd8 {[%clk 0:01:41]} 23. Bc6 {[%clk 0:01:57]}  Ra7 {[%clk 0:01:39]} 24. a3 {[%clk 0:01:56]}  Rc8 {[%clk 0:01:27]} 25. cxb4 {[%clk 0:01:50]}  axb4 {[%clk 0:01:26]} 26. axb4 {[%clk 0:01:50]}  cxb4 {[%clk 0:01:25]} 27. Rxa7 {[%clk 0:01:45]}  Qxa7 {[%clk 0:01:22]} 28. Bxb4 {[%clk 0:01:44]}  Nc5 {[%clk 0:01:12]} 29. Bxc5 {[%clk 0:01:42]}  dxc5 {[%clk 0:01:12]} 30. Nxe5 {[%clk 0:01:41]}  Bd6 {[%clk 0:01:09]} 31. Nxg6 {[%clk 0:01:39]}  hxg6 {[%clk 0:01:08]} 32. e5 {[%clk 0:01:39]}  Qa3 {[%clk 0:00:48]} 33. Re1 {[%clk 0:01:31]}  Bxe5 {[%clk 0:00:45]} 34. Qxe5 {[%clk 0:01:32]}  Qxb3 {[%clk 0:00:45]} 35. Qe3 {[%clk 0:01:28]}  c4 {[%clk 0:00:41]} 36. Qxb3 {[%clk 0:01:25]}  cxb3 {[%clk 0:00:41]} 37. Rb1 {[%clk 0:01:26]}  Rb8 {[%clk 0:00:39]} 38. d6 {[%clk 0:01:24]}  b2 {[%clk 0:00:38]} 39. d7 {[%clk 0:01:24]}  Rd8 {[%clk 0:00:17]} 40. Rxb2 {[%clk 0:01:23]}  Nxd7 {[%clk 0:00:17]} 41. Rd2 {[%clk 0:01:23]}  Kf8 {[%clk 0:00:04]} 42. Rxd7 {[%clk 0:01:22]}  Rb8 {[%clk 0:00:04]} 43. Bd5 {[%clk 0:01:20]} 1-0


[Site "https://www.chess.com"]

[Event "Titled Tuesday Blitz March 15 Late 2022"]
[White "Amburgy, Ryan"]
[Black "Ladan, Nicholas"]
[WhiteFideId "30924820"]
[BlackFideId "30918855"]
[WhiteElo "2066"]
[BlackElo "2167"]
[Result "1-0"]
[Round "01"]
[TimeControl "180+1"]
[Date "2022.03.16"]
[WhiteClock "0:00:15"]
[BlackClock "0:00:04"]

1. d4 {[%clk 0:02:53]}  d5 {[%clk 0:03:00]} 2. Nc3 {[%clk 0:02:53]}  Nf6 {[%clk 0:02:59]} 3. Bf4 {[%clk 0:02:54]}  e6 {[%clk 0:02:59]} 4. Nb5 {[%clk 0:02:54]}  Bd6 {[%clk 0:02:59]} 5. Nxd6+ {[%clk 0:02:54]}  cxd6 {[%clk 0:03:00]} 6. e3 {[%clk 0:02:55]}  O-O {[%clk 0:03:00]} 7. Nf3 {[%clk 0:02:55]}  Nc6 {[%clk 0:03:00]} 8. c3 {[%clk 0:02:55]}  Ne4 {[%clk 0:02:59]} 9. h3 {[%clk 0:02:53]}  Re8 {[%clk 0:02:57]} 10. Be2 {[%clk 0:02:51]}  e5 {[%clk 0:02:52]} 11. Bh2 {[%clk 0:02:52]}  Bf5 {[%clk 0:02:49]} 12. O-O {[%clk 0:02:51]}  h6 {[%clk 0:02:48]} 13. Qb3 {[%clk 0:02:45]}  exd4 {[%clk 0:02:21]} 14. cxd4 {[%clk 0:02:36]}  Qa5 {[%clk 0:01:56]} 15. Rac1 {[%clk 0:02:03]}  Re7 {[%clk 0:01:35]} 16. Bb5 {[%clk 0:01:47]}  Rc8 {[%clk 0:01:11]} 17. Qxd5 {[%clk 0:01:23]}  Be6 {[%clk 0:00:42]} 18. Qxe4 {[%clk 0:01:20]}  Qxb5 {[%clk 0:00:42]} 19. Bxd6 {[%clk 0:01:00]}  Bd5 {[%clk 0:00:39]} 20. Qg4 {[%clk 0:00:51]}  Re6 {[%clk 0:00:35]} 21. Ba3 {[%clk 0:00:45]}  Rce8 {[%clk 0:00:33]} 22. Nh4 {[%clk 0:00:41]}  Re4 {[%clk 0:00:29]} 23. Qg3 {[%clk 0:00:40]}  Be6 {[%clk 0:00:26]} 24. Rc5 {[%clk 0:00:35]}  Qe2 {[%clk 0:00:20]} 25. Qf3 {[%clk 0:00:31]}  Qd3 {[%clk 0:00:15]} 26. Nf5 {[%clk 0:00:29]}  Bxf5 {[%clk 0:00:15]} 27. Qxf5 {[%clk 0:00:29]}  Nxd4 {[%clk 0:00:14]} 28. Qd5 {[%clk 0:00:20]}  Ne2+ {[%clk 0:00:11]} 29. Kh2 {[%clk 0:00:20]}  Qa6 {[%clk 0:00:08]} 30. Rd1 {[%clk 0:00:17]}  R4e5 {[%clk 0:00:07]} 31. Qd6 {[%clk 0:00:14]}  b6 {[%clk 0:00:06]} 32. Rxe5 {[%clk 0:00:13]}  Rxe5 {[%clk 0:00:04]} 33. Qxe5 {[%clk 0:00:14]}  Qa4 {[%clk 0:00:03]} 34. Rd8+ {[%clk 0:00:14]}  Kh7 {[%clk 0:00:04]} 35. Qf5+ {[%clk 0:00:15]} 1-0


[Site "https://www.chess.com"]

[Event "Titled Tuesday Blitz March 15 Late 2022"]
[White "Ansh M Shah"]
[Black "Thavandiran, Shiyam"]
[WhiteFideId "25033379"]
[BlackFideId "2605058"]
[WhiteElo "1819"]
[BlackElo "2357"]
[Result "1-0"]
[Round "01"]
[TimeControl "180+1"]
[Date "2022.03.16"]
[WhiteClock "0:00:22"]
[BlackClock "0:00:03"]

1. d4 {[%clk 0:02:43]}  e6 {[%clk 0:02:54]} 2. c4 {[%clk 0:02:43]}  Bb4+ {[%clk 0:02:52]} 3. Bd2 {[%clk 0:02:43]}  a5 {[%clk 0:02:52]} 4. Nf3 {[%clk 0:02:41]}  Nf6 {[%clk 0:02:47]} 5. g3 {[%clk 0:02:41]}  d5 {[%clk 0:02:47]} 6. Bg2 {[%clk 0:02:41]}  dxc4 {[%clk 0:02:47]} 7. a3 {[%clk 0:02:41]}  Be7 {[%clk 0:02:40]} 8. O-O {[%clk 0:02:39]}  O-O {[%clk 0:02:40]} 9. Ne5 {[%clk 0:02:40]}  Qxd4 {[%clk 0:02:36]} 10. Bc3 {[%clk 0:02:39]}  Qxd1 {[%clk 0:02:35]} 11. Rxd1 {[%clk 0:02:40]}  Nd5 {[%clk 0:02:20]} 12. Nxc4 {[%clk 0:02:34]}  Nxc3 {[%clk 0:02:18]} 13. Nxc3 {[%clk 0:02:35]}  Bf6 {[%clk 0:01:42]} 14. Nb5 {[%clk 0:01:54]}  Na6 {[%clk 0:01:26]} 15. e4 {[%clk 0:00:38]}  e5 {[%clk 0:01:03]} 16. Nxa5 {[%clk 0:00:36]}  Nc5 {[%clk 0:00:23]} 17. b4 {[%clk 0:00:36]}  Ne6 {[%clk 0:00:17]} 18. Rac1 {[%clk 0:00:26]}  b6 {[%clk 0:00:15]} 19. Nb3 {[%clk 0:00:09]}  Bb7 {[%clk 0:00:05]} 20. Nxc7 {[%clk 0:00:08]}  Rxa3 {[%clk 0:00:06]} 21. Nxe6 {[%clk 0:00:08]}  fxe6 {[%clk 0:00:07]} 22. Nd2 {[%clk 0:00:08]}  Ba6 {[%clk 0:00:07]} 23. Nc4 {[%clk 0:00:08]}  Bxc4 {[%clk 0:00:07]} 24. Rxc4 {[%clk 0:00:08]}  h5 {[%clk 0:00:07]} 25. h4 {[%clk 0:00:08]}  Rfa8 {[%clk 0:00:07]} 26. Rc6 {[%clk 0:00:08]}  Ra1 {[%clk 0:00:08]} 27. Rxa1 {[%clk 0:00:08]}  Rxa1+ {[%clk 0:00:09]} 28. Kh2 {[%clk 0:00:09]}  Ra2 {[%clk 0:00:09]} 29. f3 {[%clk 0:00:09]}  b5 {[%clk 0:00:08]} 30. Rb6 {[%clk 0:00:09]}  Rb2 {[%clk 0:00:07]} 31. Rxb5 {[%clk 0:00:09]}  Kf7 {[%clk 0:00:07]} 32. Rb8 {[%clk 0:00:10]}  Be7 {[%clk 0:00:07]} 33. b5 {[%clk 0:00:10]}  Bc5 {[%clk 0:00:08]} 34. Rb7+ {[%clk 0:00:11]}  Kf6 {[%clk 0:00:08]} 35. Kh3 {[%clk 0:00:12]}  Bf2 {[%clk 0:00:06]} 36. Rb8 {[%clk 0:00:11]}  g6 {[%clk 0:00:06]} 37. b6 {[%clk 0:00:11]}  Bxb6 {[%clk 0:00:05]} 38. Rb7 {[%clk 0:00:11]}  Rb4 {[%clk 0:00:05]} 39. Rb8 {[%clk 0:00:11]}  Rb3 {[%clk 0:00:05]} 40. Rf8+ {[%clk 0:00:11]}  Ke7 {[%clk 0:00:05]} 41. Rg8 {[%clk 0:00:11]}  Kf7 {[%clk 0:00:06]} 42. Rb8 {[%clk 0:00:12]}  Rb2 {[%clk 0:00:06]} 43. Rb7+ {[%clk 0:00:12]}  Kf6 {[%clk 0:00:07]} 44. Bf1 {[%clk 0:00:12]}  Rb1 {[%clk 0:00:07]} 45. Bg2 {[%clk 0:00:12]}  Rb2 {[%clk 0:00:07]} 46. Rb8 {[%clk 0:00:12]}  Rb3 {[%clk 0:00:07]} 47. Rf8+ {[%clk 0:00:12]}  Ke7 {[%clk 0:00:07]} 48. Rh8 {[%clk 0:00:13]}  Bd4 {[%clk 0:00:07]} 49. Rh7+ {[%clk 0:00:13]}  Kf6 {[%clk 0:00:08]} 50. Rh8 {[%clk 0:00:14]}  Rb1 {[%clk 0:00:08]} 51. Rf8+ {[%clk 0:00:14]}  Kg7 {[%clk 0:00:08]} 52. Rc8 {[%clk 0:00:14]}  Kf6 {[%clk 0:00:09]} 53. Rc2 {[%clk 0:00:15]}  Rb3 {[%clk 0:00:09]} 54. Rc8 {[%clk 0:00:15]}  Re3 {[%clk 0:00:09]} 55. Rf8+ {[%clk 0:00:15]}  Ke7 {[%clk 0:00:09]} 56. Rg8 {[%clk 0:00:16]}  Kf7 {[%clk 0:00:10]} 57. Rb8 {[%clk 0:00:16]}  Re2 {[%clk 0:00:10]} 58. Rb7+ {[%clk 0:00:17]}  Kf8 {[%clk 0:00:10]} 59. Rb1 {[%clk 0:00:17]}  Kg7 {[%clk 0:00:11]} 60. Rf1 {[%clk 0:00:17]}  Rc2 {[%clk 0:00:10]} 61. Rb1 {[%clk 0:00:18]}  Bb2 {[%clk 0:00:10]} 62. Bf1 {[%clk 0:00:17]}  Kf6 {[%clk 0:00:10]} 63. Bd3 {[%clk 0:00:18]}  Rd2 {[%clk 0:00:11]} 64. Bf1 {[%clk 0:00:18]}  Bd4 {[%clk 0:00:11]} 65. Bg2 {[%clk 0:00:18]}  Rd3 {[%clk 0:00:11]} 66. Rb8 {[%clk 0:00:19]}  g5 {[%clk 0:00:10]} 67. hxg5+ {[%clk 0:00:17]}  Kxg5 {[%clk 0:00:11]} 68. Rg8+ {[%clk 0:00:18]}  Kh6 {[%clk 0:00:11]} 69. Rh8+ {[%clk 0:00:18]}  Kg6 {[%clk 0:00:12]} 70. Rg8+ {[%clk 0:00:19]}  Kh7 {[%clk 0:00:12]} 71. Re8 {[%clk 0:00:19]}  Bf2 {[%clk 0:00:11]} 72. Rxe6 {[%clk 0:00:20]}  Bd4 {[%clk 0:00:11]} 73. Re7+ {[%clk 0:00:20]}  Kg6 {[%clk 0:00:11]} 74. Re8 {[%clk 0:00:20]}  Kf7 {[%clk 0:00:11]} 75. Rh8 {[%clk 0:00:21]}  Kg6 {[%clk 0:00:12]} 76. Rb8 {[%clk 0:00:21]}  Rd2 {[%clk 0:00:12]} 77. Rc8 {[%clk 0:00:22]}  Kg5 {[%clk 0:00:12]} 78. Rc6 {[%clk 0:00:22]}  Ra2 {[%clk 0:00:11]} 79. Rd6 {[%clk 0:00:22]}  Ra3 {[%clk 0:00:10]} 80. f4+ {[%clk 0:00:22]}  exf4 {[%clk 0:00:09]} 81. Rxd4 {[%clk 0:00:22]}  Rxg3+ {[%clk 0:00:08]} 82. Kh2 {[%clk 0:00:23]}  h4 {[%clk 0:00:09]} 83. Rd5+ {[%clk 0:00:23]}  Kg6 {[%clk 0:00:08]} 84. Rf5 {[%clk 0:00:23]}  f3 {[%clk 0:00:03]} 85. Rxf3 {[%clk 0:00:23]}  Rg4 {[%clk 0:00:03]} 86. Re3 {[%clk 0:00:21]}  Kf6 {[%clk 0:00:03]} 87. Kh3 {[%clk 0:00:21]}  Rf4 {[%clk 0:00:03]} 88. Rf3 {[%clk 0:00:20]}  Ke5 {[%clk 0:00:03]} 89. Rxf4 {[%clk 0:00:21]}  Kxf4 {[%clk 0:00:04]} 90. Kxh4 {[%clk 0:00:21]}  Ke5 {[%clk 0:00:03]} 91. Kg5 {[%clk 0:00:22]} 1-0


[Site "https://www.chess.com"]

[Event "Titled Tuesday Blitz March 15 Late 2022"]
[White "Araujo Filho, Luiz Antonio Coel"]
[Black "Vlassov, Nikolai"]
[WhiteFideId "2130661"]
[BlackFideId "4103360"]
[WhiteElo "2205"]
[BlackElo "2407"]
[Result "0-1"]
[Round "01"]
[TimeControl "180+1"]
[Date "2022.03.16"]
[WhiteClock "0:00:30"]
[BlackClock "0:02:27"]

1. d4 {[%clk 0:02:59]}  Nf6 {[%clk 0:02:59]} 2. Nf3 {[%clk 0:02:59]}  e6 {[%clk 0:02:59]} 3. e3 {[%clk 0:03:00]}  c5 {[%clk 0:02:59]} 4. Bd3 {[%clk 0:03:00]}  b6 {[%clk 0:02:59]} 5. Nbd2 {[%clk 0:03:01]}  Bb7 {[%clk 0:02:59]} 6. Qe2 {[%clk 0:03:01]}  Be7 {[%clk 0:02:59]} 7. O-O {[%clk 0:03:02]}  d6 {[%clk 0:02:59]} 8. c3 {[%clk 0:03:01]}  Nbd7 {[%clk 0:02:59]} 9. e4 {[%clk 0:03:01]}  Qc7 {[%clk 0:02:58]} 10. e5 {[%clk 0:03:00]}  dxe5 {[%clk 0:02:58]} 11. dxe5 {[%clk 0:03:00]}  Nd5 {[%clk 0:02:57]} 12. g3 {[%clk 0:02:50]}  h5 {[%clk 0:02:54]} 13. a4 {[%clk 0:02:39]}  h4 {[%clk 0:02:53]} 14. Nc4 {[%clk 0:02:30]}  hxg3 {[%clk 0:02:50]} 15. fxg3 {[%clk 0:02:31]}  O-O-O {[%clk 0:02:46]} 16. Bd2 {[%clk 0:02:25]}  Rh5 {[%clk 0:02:46]} 17. Rf2 {[%clk 0:01:57]}  Rdh8 {[%clk 0:02:45]} 18. b4 {[%clk 0:01:53]}  f6 {[%clk 0:02:40]} 19. Nd6+ {[%clk 0:01:26]}  Bxd6 {[%clk 0:02:36]} 20. exd6 {[%clk 0:01:26]}  Qxd6 {[%clk 0:02:37]} 21. Re1 {[%clk 0:00:49]}  Nxc3 {[%clk 0:02:28]} 22. Bxc3 {[%clk 0:00:41]}  Qxg3+ {[%clk 0:02:28]} 23. hxg3 {[%clk 0:00:30]}  Rh1+ {[%clk 0:02:27]} 24. Kg2 {[%clk 0:00:30]}  R8h2# {[%clk 0:02:27]} 0-1


[Site "https://www.chess.com"]

[Event "Titled Tuesday Blitz March 15 Late 2022"]
[White "Batsiashvili, Nino"]
[Black "Beerdsen, Thomas"]
[WhiteFideId "13602993"]
[BlackFideId "1030108"]
[WhiteElo "2192"]
[BlackElo "2585"]
[Result "0-1"]
[Round "01"]
[TimeControl "180+1"]
[Date "2022.03.16"]
[WhiteClock "0:00:57"]
[BlackClock "0:01:38"]

1. d4 {[%clk 0:02:59]}  d5 {[%clk 0:02:58]} 2. c4 {[%clk 0:02:58]}  Nc6 {[%clk 0:02:58]} 3. e3 {[%clk 0:02:55]}  e5 {[%clk 0:02:58]} 4. cxd5 {[%clk 0:02:53]}  Qxd5 {[%clk 0:02:57]} 5. Nc3 {[%clk 0:02:53]}  Bb4 {[%clk 0:02:58]} 6. Bd2 {[%clk 0:02:54]}  Bxc3 {[%clk 0:02:58]} 7. bxc3 {[%clk 0:02:54]}  Qd6 {[%clk 0:02:59]} 8. Ne2 {[%clk 0:02:53]}  Nf6 {[%clk 0:02:58]} 9. Ng3 {[%clk 0:02:53]}  h5 {[%clk 0:02:58]} 10. Bd3 {[%clk 0:02:50]}  h4 {[%clk 0:02:53]} 11. Ne4 {[%clk 0:02:50]}  Nxe4 {[%clk 0:02:50]} 12. Bxe4 {[%clk 0:02:51]}  h3 {[%clk 0:02:47]} 13. g4 {[%clk 0:02:39]}  Be6 {[%clk 0:02:41]} 14. Qf3 {[%clk 0:02:32]}  Bc4 {[%clk 0:02:19]} 15. Rb1 {[%clk 0:02:20]}  Ba6 {[%clk 0:02:12]} 16. Bxc6+ {[%clk 0:02:08]}  bxc6 {[%clk 0:02:13]} 17. Qe4 {[%clk 0:01:57]}  O-O {[%clk 0:02:09]} 18. Qxe5 {[%clk 0:01:52]}  Qa3 {[%clk 0:02:09]} 19. Rg1 {[%clk 0:01:25]}  Qxa2 {[%clk 0:01:43]} 20. Rc1 {[%clk 0:00:57]}  Qc4 {[%clk 0:01:38]} 0-1


[Site "https://www.chess.com"]

[Event "Titled Tuesday Blitz March 15 Late 2022"]
[White "Brunner, Nicolas"]
[Black "Fier, Alexandr"]
[WhiteFideId "620246"]
[BlackFideId "2107139"]
[WhiteElo "2372"]
[BlackElo "2571"]
[Result "1-0"]
[Round "01"]
[TimeControl "180+1"]
[Date "2022.03.16"]
[WhiteClock "0:00:13"]
[BlackClock "0:01:47"]

1. d4 {[%clk 0:02:59]}  c5 {[%clk 0:02:58]} 2. d5 {[%clk 0:02:58]}  Nf6 {[%clk 0:02:58]} 3. c4 {[%clk 0:02:58]}  e6 {[%clk 0:02:56]} 4. Nc3 {[%clk 0:02:57]}  exd5 {[%clk 0:02:57]} 5. cxd5 {[%clk 0:02:57]}  d6 {[%clk 0:02:57]} 6. Nf3 {[%clk 0:02:58]}  g6 {[%clk 0:02:58]} 7. e4 {[%clk 0:02:57]}  Bg7 {[%clk 0:02:58]} 8. Be2 {[%clk 0:02:58]}  O-O {[%clk 0:02:59]} 9. Be3 {[%clk 0:02:58]}  Re8 {[%clk 0:02:59]} 10. Nd2 {[%clk 0:02:57]}  Nfd7 {[%clk 0:02:57]} 11. O-O {[%clk 0:02:54]}  a6 {[%clk 0:02:57]} 12. a4 {[%clk 0:02:53]}  b6 {[%clk 0:02:57]} 13. Kh1 {[%clk 0:02:48]}  Bb7 {[%clk 0:02:56]} 14. Qc2 {[%clk 0:02:40]}  Qc7 {[%clk 0:02:55]} 15. f4 {[%clk 0:02:32]}  Nf6 {[%clk 0:02:54]} 16. Nc4 {[%clk 0:02:15]}  Nbd7 {[%clk 0:02:53]} 17. Bf3 {[%clk 0:02:12]}  Rad8 {[%clk 0:02:51]} 18. Rae1 {[%clk 0:02:11]}  Qb8 {[%clk 0:02:48]} 19. Bf2 {[%clk 0:02:07]}  Ba8 {[%clk 0:02:47]} 20. Bg3 {[%clk 0:02:04]}  b5 {[%clk 0:02:46]} 21. axb5 {[%clk 0:02:04]}  axb5 {[%clk 0:02:47]} 22. Nxd6 {[%clk 0:02:02]}  Qxd6 {[%clk 0:02:45]} 23. e5 {[%clk 0:02:02]}  Qb6 {[%clk 0:02:46]} 24. exf6 {[%clk 0:02:01]}  Bxf6 {[%clk 0:02:42]} 25. Rxe8+ {[%clk 0:01:52]}  Rxe8 {[%clk 0:02:43]} 26. Rd1 {[%clk 0:01:52]}  b4 {[%clk 0:02:42]} 27. Ne4 {[%clk 0:01:48]}  Bd4 {[%clk 0:02:42]} 28. Nd2 {[%clk 0:01:40]}  Nf6 {[%clk 0:02:35]} 29. Nc4 {[%clk 0:01:34]}  Qa6 {[%clk 0:02:35]} 30. d6 {[%clk 0:01:07]}  Bxf3 {[%clk 0:02:32]} 31. gxf3 {[%clk 0:01:07]}  Nd5 {[%clk 0:02:28]} 32. f5 {[%clk 0:01:01]}  Qc6 {[%clk 0:02:21]} 33. Kg2 {[%clk 0:00:57]}  Nf6 {[%clk 0:02:05]} 34. fxg6 {[%clk 0:00:51]}  hxg6 {[%clk 0:02:06]} 35. b3 {[%clk 0:00:45]}  Nd5 {[%clk 0:02:04]} 36. Qd2 {[%clk 0:00:34]}  Ne3+ {[%clk 0:02:00]} 37. Nxe3 {[%clk 0:00:33]}  Rxe3 {[%clk 0:02:01]} 38. Rf1 {[%clk 0:00:24]}  Qe8 {[%clk 0:01:59]} 39. Kh1 {[%clk 0:00:20]}  Rxb3 {[%clk 0:01:58]} 40. Qg5 {[%clk 0:00:20]}  Rb2 {[%clk 0:01:55]} 41. Re1 {[%clk 0:00:18]}  Qd7 {[%clk 0:01:54]} 42. Qe7 {[%clk 0:00:16]}  Qh3 {[%clk 0:01:51]} 43. Qe8+ {[%clk 0:00:15]}  Kg7 {[%clk 0:01:50]} 44. Be5+ {[%clk 0:00:15]}  f6 {[%clk 0:01:46]} 45. Qe7+ {[%clk 0:00:14]}  Kh6 {[%clk 0:01:47]} 46. Qf8+ {[%clk 0:00:14]}  Kg5 {[%clk 0:01:47]} 47. Qxf6+ {[%clk 0:00:13]}  Kh5 {[%clk 0:01:46]} 48. Qh8+ {[%clk 0:00:13]}  Kg5 {[%clk 0:01:47]} 49. Qxh3 {[%clk 0:00:13]} 1-0


[Site "https://www.chess.com"]

[Event "Titled Tuesday Blitz March 15 Late 2022"]
[White "Bryakin, Mikhail"]
[Black "Hoffmann, Asa"]
[WhiteFideId "4165314"]
[BlackFideId "2001470"]
[WhiteElo "2417"]
[BlackElo "2117"]
[Result "1-0"]
[Round "01"]
[TimeControl "180+1"]
[Date "2022.03.16"]
[WhiteClock "0:00:27"]
[BlackClock "0:00:19"]

1. e4 {[%clk 0:02:57]}  d6 {[%clk 0:02:58]} 2. d4 {[%clk 0:02:54]}  Nf6 {[%clk 0:02:58]} 3. Nc3 {[%clk 0:02:52]}  c6 {[%clk 0:02:57]} 4. a4 {[%clk 0:02:49]}  Qa5 {[%clk 0:02:56]} 5. Bd2 {[%clk 0:02:48]}  e5 {[%clk 0:02:55]} 6. Nf3 {[%clk 0:02:46]}  Bg4 {[%clk 0:02:54]} 7. dxe5 {[%clk 0:02:45]}  dxe5 {[%clk 0:02:54]} 8. Nd5 {[%clk 0:02:42]}  Qd8 {[%clk 0:02:45]} 9. Nxf6+ {[%clk 0:02:42]}  Qxf6 {[%clk 0:02:41]} 10. Be2 {[%clk 0:02:42]}  h6 {[%clk 0:02:34]} 11. O-O {[%clk 0:02:42]}  Nd7 {[%clk 0:02:33]} 12. h3 {[%clk 0:02:42]}  Bh5 {[%clk 0:02:32]} 13. Ne1 {[%clk 0:02:40]}  Bg6 {[%clk 0:02:31]} 14. f3 {[%clk 0:02:33]}  Bc5+ {[%clk 0:02:28]} 15. Kh2 {[%clk 0:02:34]}  a5 {[%clk 0:02:27]} 16. Bc4 {[%clk 0:02:32]}  Rd8 {[%clk 0:02:24]} 17. Qe2 {[%clk 0:02:32]}  b6 {[%clk 0:02:13]} 18. Nd3 {[%clk 0:02:31]}  Bd6 {[%clk 0:02:08]} 19. Be3 {[%clk 0:02:24]}  O-O {[%clk 0:02:07]} 20. Rfd1 {[%clk 0:02:20]}  Qe7 {[%clk 0:02:06]} 21. Nf2 {[%clk 0:02:10]}  Bc5 {[%clk 0:02:03]} 22. Ng4 {[%clk 0:02:07]}  h5 {[%clk 0:01:56]} 23. Bxc5 {[%clk 0:02:03]}  Nxc5 {[%clk 0:01:52]} 24. Ne3 {[%clk 0:02:04]}  Rxd1 {[%clk 0:01:44]} 25. Qxd1 {[%clk 0:02:05]}  Rd8 {[%clk 0:01:43]} 26. Qe2 {[%clk 0:02:05]}  Ne6 {[%clk 0:01:42]} 27. c3 {[%clk 0:02:04]}  Nf4 {[%clk 0:01:41]} 28. Qe1 {[%clk 0:02:04]}  Qc5 {[%clk 0:01:39]} 29. b3 {[%clk 0:01:57]}  Qe7 {[%clk 0:01:22]} 30. Rd1 {[%clk 0:01:50]}  Rxd1 {[%clk 0:01:20]} 31. Qxd1 {[%clk 0:01:51]}  Qc5 {[%clk 0:01:18]} 32. Qd2 {[%clk 0:01:36]}  h4 {[%clk 0:01:15]} 33. b4 {[%clk 0:01:28]}  axb4 {[%clk 0:01:12]} 34. cxb4 {[%clk 0:01:29]}  Qd4 {[%clk 0:01:12]} 35. Qxd4 {[%clk 0:01:26]}  exd4 {[%clk 0:01:11]} 36. Ng4 {[%clk 0:01:19]}  d3 {[%clk 0:01:07]} 37. a5 {[%clk 0:01:17]}  d2 {[%clk 0:01:07]} 38. Ne3 {[%clk 0:01:14]}  b5 {[%clk 0:01:02]} 39. a6 {[%clk 0:00:47]}  bxc4 {[%clk 0:01:02]} 40. a7 {[%clk 0:00:47]}  c3 {[%clk 0:01:02]} 41. a8=Q+ {[%clk 0:00:48]}  Kh7 {[%clk 0:01:02]} 42. Qxc6 {[%clk 0:00:47]}  Ne2 {[%clk 0:00:53]} 43. Qc4 {[%clk 0:00:47]}  Ng3 {[%clk 0:00:49]} 44. Kg1 {[%clk 0:00:39]}  f5 {[%clk 0:00:42]} 45. Kf2 {[%clk 0:00:28]}  fxe4 {[%clk 0:00:41]} 46. Qxc3 {[%clk 0:00:27]}  exf3 {[%clk 0:00:37]} 47. gxf3 {[%clk 0:00:28]}  Be4 {[%clk 0:00:19]} 48. Qxd2 {[%clk 0:00:27]} 1-0


[Site "https://www.chess.com"]